[Event "*** SCC Grand Prix: Titled Tuesday Blitz"]
[Site "Chess.com"]
[Date "2020.06.09"]
[Round "5"]
[White "Fortitudine"]
[Black "ditkin25"]
[Result "1/2-1/2"]
[WhiteElo "2266"]
[BlackElo "2411"]
[TimeControl "180+1"]
[EndTime "9:57:56 PDT"]
[Termination "Game drawn - insufficient material"]

1. c4 {[%clk 0:02:16.2]} 1... g6 {[%clk 0:02:58.8]} 2. g3 {[%clk 0:02:11.8]}
2... Bg7 {[%clk 0:02:59.2]} 3. Bg2 {[%clk 0:02:10.8]} 3... Nf6 {[%clk
0:02:59.8]} 4. Nc3 {[%clk 0:02:10.3]} 4... O-O {[%clk 0:02:59.8]} 5. e4 {[%clk
0:02:10.8]} 5... d6 {[%clk 0:03:00.5]} 6. d3 {[%clk 0:02:10.3]} 6... c5 {[%clk
0:03:00.9]} 7. Nge2 {[%clk 0:02:10.7]} 7... Nc6 {[%clk 0:03:01.5]} 8. O-O {[%clk
0:02:10.5]} 8... a6 {[%clk 0:03:02.2]} 9. h3 {[%clk 0:02:07.7]} 9... Ne8 {[%clk
0:03:02.4]} 10. Be3 {[%clk 0:02:06.8]} 10... Nc7 {[%clk 0:03:02.6]} 11. d4
{[%clk 0:02:07]} 11... cxd4 {[%clk 0:03:03.5]} 12. Nxd4 {[%clk 0:02:07.8]} 12...
Ne6 {[%clk 0:03:03.9]} 13. Nde2 {[%clk 0:02:04.6]} 13... Nc5 {[%clk 0:02:54.5]}
14. Qd2 {[%clk 0:01:57.8]} 14... Rb8 {[%clk 0:02:51.2]} 15. Rad1 {[%clk
0:01:56.6]} 15... Qa5 {[%clk 0:02:32.8]} 16. b3 {[%clk 0:01:54.3]} 16... Re8
{[%clk 0:02:15.6]} 17. Nd5 {[%clk 0:01:44]} 17... Qxd2 {[%clk 0:02:16.5]} 18.
Rxd2 {[%clk 0:01:43.7]} 18... b5 {[%clk 0:02:12.3]} 19. cxb5 {[%clk 0:01:37.7]}
19... axb5 {[%clk 0:02:10.7]} 20. Rc1 {[%clk 0:01:34.7]} 20... e6 {[%clk
0:01:39.1]} 21. Ndf4 {[%clk 0:01:25.4]} 21... Bf8 {[%clk 0:01:24.5]} 22. Nd3
{[%clk 0:01:03.7]} 22... Nxd3 {[%clk 0:01:18.2]} 23. Rxc6 {[%clk 0:00:40.7]}
23... Ne5 {[%clk 0:01:11.6]} 24. Rb6 {[%clk 0:00:36.6]} 24... Rxb6 {[%clk
0:01:06]} 25. Bxb6 {[%clk 0:00:37.5]} 25... Bb7 {[%clk 0:01:04.4]} 26. f4 {[%clk
0:00:35.7]} 26... Nd7 {[%clk 0:01:05]} 27. Ba5 {[%clk 0:00:31.4]} 27... Nc5
{[%clk 0:00:59.6]} 28. e5 {[%clk 0:00:19.1]} 28... Bxg2 {[%clk 0:00:56.9]} 29.
Kxg2 {[%clk 0:00:20]} 29... d5 {[%clk 0:00:46.6]} 30. Nd4 {[%clk 0:00:17]} 30...
Ra8 {[%clk 0:00:41.1]} 31. b4 {[%clk 0:00:16.5]} 31... Nb7 {[%clk 0:00:23.2]}
32. Nxb5 {[%clk 0:00:14.5]} 32... Nxa5 {[%clk 0:00:22.7]} 33. bxa5 {[%clk
0:00:15.4]} 33... Rxa5 {[%clk 0:00:23.5]} 34. Rb2 {[%clk 0:00:12.4]} 34... Bc5
{[%clk 0:00:20.7]} 35. Nd6 {[%clk 0:00:07.9]} 35... Ra8 {[%clk 0:00:11.6]} 36.
Rb7 {[%clk 0:00:06]} 36... Bxd6 {[%clk 0:00:10.2]} 37. exd6 {[%clk 0:00:06.9]}
37... Rxa2+ {[%clk 0:00:09.5]} 38. Kf3 {[%clk 0:00:06.7]} 38... Ra8 {[%clk
0:00:10.3]} 39. Kg4 {[%clk 0:00:03.9]} 39... Rd8 {[%clk 0:00:10.7]} 40. d7
{[%clk 0:00:04]} 40... Kf8 {[%clk 0:00:11.1]} 41. Kg5 {[%clk 0:00:04.5]} 41...
Ke7 {[%clk 0:00:11.6]} 42. Kh6 {[%clk 0:00:05]} 42... Rxd7 {[%clk 0:00:12]} 43.
Rb8 {[%clk 0:00:05.4]} 43... d4 {[%clk 0:00:12.2]} 44. Rb1 {[%clk 0:00:05.9]}
44... Kf6 {[%clk 0:00:11.6]} 45. Kxh7 {[%clk 0:00:06.1]} 45... Rd5 {[%clk
0:00:11.3]} 46. g4 {[%clk 0:00:04.1]} 46... g5 {[%clk 0:00:11.8]} 47. fxg5+
{[%clk 0:00:04.1]} 47... Kxg5 {[%clk 0:00:12.7]} 48. Rf1 {[%clk 0:00:04]} 48...
f5 {[%clk 0:00:12.5]} 49. gxf5 {[%clk 0:00:04.1]} 49... exf5 {[%clk 0:00:13.3]}
50. Kg7 {[%clk 0:00:02.8]} 50... d3 {[%clk 0:00:12.6]} 51. Kf7 {[%clk
0:00:02.7]} 51... d2 {[%clk 0:00:12.6]} 52. Rg1+ {[%clk 0:00:03.6]} 52... Kh4
{[%clk 0:00:12.9]} 53. Rd1 {[%clk 0:00:04.5]} 53... Kxh3 {[%clk 0:00:13.2]} 54.
Ke6 {[%clk 0:00:05.4]} 54... Rd3 {[%clk 0:00:13.3]} 55. Kxf5 {[%clk 0:00:05.8]}
55... Kg3 {[%clk 0:00:12.4]} 56. Ke4 {[%clk 0:00:06.3]} 56... Rd8 {[%clk
0:00:11.1]} 57. Ke3 {[%clk 0:00:06.9]} 57... Re8+ {[%clk 0:00:09.7]} 58. Kxd2
{[%clk 0:00:07.8]} 58... Rd8+ {[%clk 0:00:08.2]} 59. Kc1 {[%clk 0:00:08.7]}
59... Rxd1+ {[%clk 0:00:08.7]} 60. Kxd1 {[%clk 0:00:09.5]} 1/2-1/2

[Event "*** SCC Grand Prix: Titled Tuesday Blitz"]
[Site "Chess.com"]
[Date "2020.06.09"]
[Round "5"]
[White "Shivagami"]
[Black "Kostya26"]
[Result "0-1"]
[WhiteElo "2264"]
[BlackElo "2427"]
[TimeControl "180+1"]
[EndTime "9:57:57 PDT"]
[Termination "Kostya26 won by resignation"]

1. d4 {[%clk 0:03:00.9]} 1... d5 {[%clk 0:02:57.9]} 2. c4 {[%clk 0:03:00.6]}
2... e6 {[%clk 0:02:57.2]} 3. Nc3 {[%clk 0:02:58.6]} 3... h6 {[%clk 0:02:55.5]}
4. cxd5 {[%clk 0:02:56.9]} 4... exd5 {[%clk 0:02:55.4]} 5. Bf4 {[%clk
0:02:53.7]} 5... c6 {[%clk 0:02:55.4]} 6. e3 {[%clk 0:02:53.7]} 6... Bf5 {[%clk
0:02:54.2]} 7. Nf3 {[%clk 0:02:41.7]} 7... Nf6 {[%clk 0:02:53.2]} 8. Bd3 {[%clk
0:02:33.2]} 8... Bxd3 {[%clk 0:02:47.9]} 9. Qxd3 {[%clk 0:02:34.1]} 9... Be7
{[%clk 0:02:47.5]} 10. O-O {[%clk 0:02:33]} 10... O-O {[%clk 0:02:47.5]} 11. h3
{[%clk 0:02:31.1]} 11... Nbd7 {[%clk 0:02:47.5]} 12. Ne5 {[%clk 0:02:30.9]}
12... Nxe5 {[%clk 0:02:40.8]} 13. Bxe5 {[%clk 0:02:26.8]} 13... Re8 {[%clk
0:02:37.8]} 14. Rfd1 {[%clk 0:02:20.4]} 14... Bd6 {[%clk 0:02:15.2]} 15. f4
{[%clk 0:02:10.5]} 15... Bb4 {[%clk 0:02:04.5]} 16. a3 {[%clk 0:02:03.9]} 16...
Bxc3 {[%clk 0:02:03.7]} 17. bxc3 {[%clk 0:02:04.8]} 17... Ne4 {[%clk 0:02:02.2]}
18. f5 {[%clk 0:02:01.2]} 18... b5 {[%clk 0:01:50.7]} 19. a4 {[%clk 0:01:55.4]}
19... a6 {[%clk 0:01:50.3]} 20. Bf4 {[%clk 0:01:44.7]} 20... Qd7 {[%clk
0:01:43.3]} 21. g4 {[%clk 0:01:40]} 21... Qe7 {[%clk 0:01:15.7]} 22. Kg2 {[%clk
0:01:22.3]} 22... Qh4 {[%clk 0:01:13.7]} 23. Qc2 {[%clk 0:01:19.1]} 23... h5
{[%clk 0:01:05.3]} 24. g5 {[%clk 0:01:11.6]} 24... Nxg5 {[%clk 0:01:03.4]} 25.
Rh1 {[%clk 0:00:44.5]} 25... Ne4 {[%clk 0:00:38]} 26. Kf3 {[%clk 0:00:32.3]}
26... Qf6 {[%clk 0:00:33]} 27. Rag1 {[%clk 0:00:21.5]} 27... Qxf5 {[%clk
0:00:29.4]} 28. Ke2 {[%clk 0:00:16.6]} 28... Ng3+ {[%clk 0:00:25.4]} 29. Kd2
{[%clk 0:00:14.8]} 29... Qxc2+ {[%clk 0:00:24]} 30. Kxc2 {[%clk 0:00:15.7]}
30... Nxh1 {[%clk 0:00:24.3]} 31. Rxh1 {[%clk 0:00:16.1]} 31... g6 {[%clk
0:00:22.9]} 32. Ra1 {[%clk 0:00:15.3]} 32... Kg7 {[%clk 0:00:20.4]} 33. a5
{[%clk 0:00:15.3]} 33... Kf6 {[%clk 0:00:17.2]} 34. Kd3 {[%clk 0:00:15.4]} 34...
Kf5 {[%clk 0:00:16.2]} 35. Rf1 {[%clk 0:00:04.8]} 35... Ke6 {[%clk 0:00:08.1]}
36. Be5 {[%clk 0:00:05]} 36... f5 {[%clk 0:00:06.2]} 37. Bf4 {[%clk 0:00:05.4]}
37... Rg8 {[%clk 0:00:05.4]} 38. Bg5 {[%clk 0:00:06.3]} 38... Rab8 {[%clk
0:00:05.4]} 39. h4 {[%clk 0:00:07]} 39... b4 {[%clk 0:00:05.2]} 40. Rc1 {[%clk
0:00:07.6]} 40... b3 {[%clk 0:00:04.7]} 41. Rb1 {[%clk 0:00:07.8]} 41... Rb5
{[%clk 0:00:04.9]} 42. Rb2 {[%clk 0:00:08.1]} 42... Rgb8 {[%clk 0:00:03.7]} 43.
c4 {[%clk 0:00:08.7]} 43... dxc4+ {[%clk 0:00:03.5]} 44. Kxc4 {[%clk 0:00:08.9]}
44... Rxa5 {[%clk 0:00:04.1]} 45. Kc3 {[%clk 0:00:08.7]} 45... Ra2 {[%clk
0:00:03.5]} 46. Bf4 {[%clk 0:00:08.5]} 46... Rxb2 {[%clk 0:00:03.5]} 47. Bxb8
{[%clk 0:00:08.5]} 47... Rc2+ {[%clk 0:00:02.9]} 48. Kxb3 {[%clk 0:00:08.2]}
48... Re2 {[%clk 0:00:03.6]} 49. Kc4 {[%clk 0:00:08.6]} 49... Rxe3 {[%clk
0:00:03.8]} 50. Kc5 {[%clk 0:00:08.7]} 50... Rd3 {[%clk 0:00:03.5]} 51. Bf4
{[%clk 0:00:08.5]} 51... Rc3+ {[%clk 0:00:03.7]} 52. Kb6 {[%clk 0:00:08.1]}
52... Rc2 {[%clk 0:00:04.2]} 53. Be5 {[%clk 0:00:08.5]} 53... Kd5 {[%clk
0:00:04.5]} 54. Kxa6 {[%clk 0:00:08.6]} 54... Rc4 {[%clk 0:00:03.8]} 55. Kb7
{[%clk 0:00:08.5]} 55... Rxd4 {[%clk 0:00:04.7]} 56. Bf6 {[%clk 0:00:07.4]}
56... Rg4 {[%clk 0:00:04.6]} 57. Bg5 {[%clk 0:00:07.1]} 57... f4 {[%clk
0:00:05.5]} 0-1

[Event "*** SCC Grand Prix: Titled Tuesday Blitz"]
[Site "Chess.com"]
[Date "2020.06.09"]
[Round "5"]
[White "evgchess5"]
[Black "pedro_gines"]
[Result "1-0"]
[WhiteElo "2797"]
[BlackElo "2462"]
[TimeControl "180+1"]
[EndTime "9:57:58 PDT"]
[Termination "evgchess5 won by resignation"]

1. e4 {[%clk 0:03:00.7]} 1... c6 {[%clk 0:02:59.6]} 2. d4 {[%clk 0:03:00.3]}
2... d5 {[%clk 0:03:00.5]} 3. exd5 {[%clk 0:02:58.5]} 3... cxd5 {[%clk
0:03:00.6]} 4. Bd3 {[%clk 0:02:59]} 4... Nc6 {[%clk 0:03:00.9]} 5. c3 {[%clk
0:02:59.2]} 5... Nf6 {[%clk 0:03:00.8]} 6. h3 {[%clk 0:02:59.5]} 6... g6 {[%clk
0:03:00.1]} 7. Nf3 {[%clk 0:02:59.9]} 7... Bf5 {[%clk 0:03:00.4]} 8. O-O {[%clk
0:02:59.6]} 8... Bg7 {[%clk 0:02:58.3]} 9. Re1 {[%clk 0:02:59.8]} 9... Bxd3
{[%clk 0:02:58]} 10. Qxd3 {[%clk 0:02:59.7]} 10... O-O {[%clk 0:02:57.7]} 11.
Nbd2 {[%clk 0:02:59.3]} 11... a6 {[%clk 0:02:52.1]} 12. Nb3 {[%clk 0:02:59.1]}
12... b6 {[%clk 0:02:50.1]} 13. Bf4 {[%clk 0:02:57.8]} 13... e6 {[%clk
0:02:49.8]} 14. Re2 {[%clk 0:02:52]} 14... Ne8 {[%clk 0:02:49.6]} 15. Rae1
{[%clk 0:02:50.8]} 15... Nd6 {[%clk 0:02:50.1]} 16. Qd1 {[%clk 0:02:47.2]} 16...
a5 {[%clk 0:02:44.9]} 17. a3 {[%clk 0:02:45.8]} 17... Nc4 {[%clk 0:02:43.9]} 18.
Qc1 {[%clk 0:02:42.1]} 18... a4 {[%clk 0:02:43.2]} 19. Na1 {[%clk 0:02:37.8]}
19... b5 {[%clk 0:02:42.1]} 20. Bh6 {[%clk 0:02:37.6]} 20... Re8 {[%clk
0:02:36]} 21. Bxg7 {[%clk 0:02:36.9]} 21... Kxg7 {[%clk 0:02:36.9]} 22. Nc2
{[%clk 0:02:28.5]} 22... Qf6 {[%clk 0:02:32.4]} 23. Rf1 {[%clk 0:02:26.3]} 23...
Ra7 {[%clk 0:02:32.1]} 24. Nce1 {[%clk 0:02:25.9]} 24... e5 {[%clk 0:01:55.7]}
25. dxe5 {[%clk 0:02:16.7]} 25... N6xe5 {[%clk 0:01:56.6]} 26. Nxe5 {[%clk
0:02:15.4]} 26... Nxe5 {[%clk 0:01:48.2]} 27. Rd2 {[%clk 0:02:11.1]} 27... Rd7
{[%clk 0:01:43.3]} 28. Rd4 {[%clk 0:02:05.9]} 28... Nc6 {[%clk 0:01:38.5]} 29.
Rf4 {[%clk 0:02:05.7]} 29... Qd6 {[%clk 0:01:34.5]} 30. Nf3 {[%clk 0:02:03.5]}
30... Re4 {[%clk 0:01:33.1]} 31. Rg4 {[%clk 0:01:56.4]} 31... f5 {[%clk
0:01:31]} 32. Rg3 {[%clk 0:01:42.8]} 32... Rde7 {[%clk 0:01:06]} 33. h4 {[%clk
0:01:39.8]} 33... Rg4 {[%clk 0:00:30.7]} 34. Rh3 {[%clk 0:01:31.4]} 34... h6
{[%clk 0:00:28.4]} 35. Rd1 {[%clk 0:01:24.2]} 35... Qc5 {[%clk 0:00:28.1]} 36.
Nh2 {[%clk 0:01:00.2]} 36... Rge4 {[%clk 0:00:15.8]} 37. Nf1 {[%clk 0:01:00]}
37... Re2 {[%clk 0:00:12.1]} 38. Re3 {[%clk 0:00:59.1]} 38... R7xe3 {[%clk
0:00:11.4]} 39. Nxe3 {[%clk 0:00:59.2]} 39... d4 {[%clk 0:00:11.9]} 40. Kf1
{[%clk 0:00:52.4]} 40... Rxe3 {[%clk 0:00:02.8]} 41. fxe3 {[%clk 0:00:51.9]}
41... dxe3 {[%clk 0:00:03.7]} 42. c4 {[%clk 0:00:37.5]} 42... Qxc4+ {[%clk
0:00:01.2]} 43. Qxc4 {[%clk 0:00:37.2]} 43... bxc4 {[%clk 0:00:02.1]} 44. Rd7+
{[%clk 0:00:37.1]} 44... Kf8 {[%clk 0:00:02.3]} 45. Ke2 {[%clk 0:00:34.2]} 45...
f4 {[%clk 0:00:02.6]} 46. Rd6 {[%clk 0:00:31.7]} 46... Ne5 {[%clk 0:00:02.6]}
47. Re6 {[%clk 0:00:31.6]} 47... Nd3 {[%clk 0:00:02.9]} 48. Rxg6 {[%clk
0:00:30.8]} 48... Nxb2 {[%clk 0:00:03.3]} 49. Rf6+ {[%clk 0:00:29.7]} 49... Ke7
{[%clk 0:00:03.2]} 50. Rxf4 {[%clk 0:00:30.3]} 50... c3 {[%clk 0:00:03.1]} 51.
Re4+ {[%clk 0:00:22.8]} 51... Kd6 {[%clk 0:00:03.1]} 52. Rxe3 {[%clk 0:00:22.8]}
52... c2 {[%clk 0:00:03]} 53. Rc3 {[%clk 0:00:22.9]} 53... Kd5 {[%clk
0:00:02.6]} 54. Rxc2 {[%clk 0:00:22.6]} 54... Nc4 {[%clk 0:00:03.2]} 55. Rc3
{[%clk 0:00:22.5]} 55... Kd4 {[%clk 0:00:03.1]} 56. Rf3 {[%clk 0:00:22.4]} 56...
Ke4 {[%clk 0:00:04]} 57. g4 {[%clk 0:00:21.5]} 57... Ne5 {[%clk 0:00:04.1]} 58.
Rc3 {[%clk 0:00:19.2]} 58... Nxg4 {[%clk 0:00:04.2]} 59. Rc4+ {[%clk 0:00:19.2]}
59... Kf5 {[%clk 0:00:04.4]} 60. Rxa4 {[%clk 0:00:19.3]} 60... Nf6 {[%clk
0:00:04.5]} 61. Rb4 {[%clk 0:00:18.8]} 61... Nd5 {[%clk 0:00:04.8]} 62. Rb5
{[%clk 0:00:18.7]} 62... Ke6 {[%clk 0:00:05.2]} 63. Kf3 {[%clk 0:00:18.7]} 63...
Nc3 {[%clk 0:00:03.7]} 64. Rb6+ {[%clk 0:00:17.6]} 64... Kf5 {[%clk 0:00:04.2]}
65. Rxh6 {[%clk 0:00:17.4]} 65... Nb5 {[%clk 0:00:04.4]} 66. Rh5+ {[%clk
0:00:16.9]} 1-0

[Event "*** SCC Grand Prix: Titled Tuesday Blitz"]
[Site "Chess.com"]
[Date "2020.06.09"]
[Round "5"]
[White "Siniauski"]
[Black "LileKoridze"]
[Result "1/2-1/2"]
[WhiteElo "2502"]
[BlackElo "2302"]
[TimeControl "180+1"]
[EndTime "9:57:58 PDT"]
[Termination "Game drawn by stalemate"]

1. e4 {[%clk 0:03:00.9]} 1... c5 {[%clk 0:00:45]} 2. Nf3 {[%clk 0:03:00.2]} 2...
d6 {[%clk 0:00:45.2]} 3. Bb5+ {[%clk 0:02:59.5]} 3... Nd7 {[%clk 0:00:44.9]} 4.
d4 {[%clk 0:02:59.3]} 4... a6 {[%clk 0:00:45.4]} 5. Bxd7+ {[%clk 0:02:57.2]}
5... Bxd7 {[%clk 0:00:46.3]} 6. c4 {[%clk 0:02:57.4]} 6... cxd4 {[%clk
0:00:46.3]} 7. Qxd4 {[%clk 0:02:58.3]} 7... Nf6 {[%clk 0:00:46.1]} 8. Nc3 {[%clk
0:02:57.4]} 8... g6 {[%clk 0:00:46.7]} 9. O-O {[%clk 0:02:51.6]} 9... Bg7 {[%clk
0:00:46.6]} 10. Qd3 {[%clk 0:02:40.3]} 10... O-O {[%clk 0:00:47.1]} 11. b3
{[%clk 0:02:40.3]} 11... Bc6 {[%clk 0:00:47]} 12. Bb2 {[%clk 0:02:37.8]} 12...
Nd7 {[%clk 0:00:47.4]} 13. Nd2 {[%clk 0:02:35.4]} 13... Nc5 {[%clk 0:00:45.9]}
14. Qe2 {[%clk 0:02:34.4]} 14... f5 {[%clk 0:00:45.5]} 15. exf5 {[%clk
0:02:31.9]} 15... Rxf5 {[%clk 0:00:46]} 16. b4 {[%clk 0:02:26.8]} 16... Nd7
{[%clk 0:00:43.9]} 17. Rab1 {[%clk 0:02:10.5]} 17... b5 {[%clk 0:00:41.9]} 18.
Nd5 {[%clk 0:02:01.5]} 18... Bxd5 {[%clk 0:00:40.2]} 19. cxd5 {[%clk 0:02:01.4]}
19... Nf6 {[%clk 0:00:36.8]} 20. Nf3 {[%clk 0:01:26.3]} 20... Nxd5 {[%clk
0:00:34.9]} 21. Qe6+ {[%clk 0:01:21.5]} 21... Kh8 {[%clk 0:00:35]} 22. Bxg7+
{[%clk 0:01:21.6]} 22... Kxg7 {[%clk 0:00:35]} 23. Rbd1 {[%clk 0:01:14.4]} 23...
Nf4 {[%clk 0:00:33.8]} 24. Qe4 {[%clk 0:01:14.4]} 24... Rc8 {[%clk 0:00:31.7]}
25. Rfe1 {[%clk 0:01:11.1]} 25... e6 {[%clk 0:00:27.3]} 26. g3 {[%clk
0:01:04.3]} 26... Rc4 {[%clk 0:00:27.5]} 27. Qe3 {[%clk 0:00:55.8]} 27... Nh3+
{[%clk 0:00:14.8]} 28. Kg2 {[%clk 0:00:55.6]} 28... Qf6 {[%clk 0:00:15.1]} 29.
Kxh3 {[%clk 0:00:23.2]} 29... Rxf3 {[%clk 0:00:15.3]} 30. Qxe6 {[%clk
0:00:23.5]} 30... Qxe6+ {[%clk 0:00:14.6]} 31. Rxe6 {[%clk 0:00:24.4]} 31...
Rxf2 {[%clk 0:00:15.2]} 32. Re7+ {[%clk 0:00:22.3]} 32... Kh6 {[%clk 0:00:15]}
33. Rxd6 {[%clk 0:00:20.1]} 33... Rxa2 {[%clk 0:00:14.9]} 34. Rdd7 {[%clk
0:00:20.1]} 34... Rcc2 {[%clk 0:00:15]} 35. Kg4 {[%clk 0:00:13.5]} 35... Rc4+
{[%clk 0:00:14]} 36. Kh3 {[%clk 0:00:12.9]} 36... Rxb4 {[%clk 0:00:13.5]} 37.
Rxh7+ {[%clk 0:00:13.2]} 37... Kg5 {[%clk 0:00:13.6]} 38. Rd5+ {[%clk
0:00:13.7]} 38... Kf6 {[%clk 0:00:14.1]} 39. Rb7 {[%clk 0:00:13.1]} 39... Re4
{[%clk 0:00:12]} 40. Rdd7 {[%clk 0:00:04.9]} 40... Ree2 {[%clk 0:00:11.7]} 41.
Rf7+ {[%clk 0:00:03.2]} 41... Kg5 {[%clk 0:00:11.1]} 42. g4 {[%clk 0:00:01.6]}
42... Rxh2+ {[%clk 0:00:11.3]} 43. Kg3 {[%clk 0:00:01.5]} 43... Rhg2+ {[%clk
0:00:11.5]} 44. Kf3 {[%clk 0:00:01.9]} 44... Raf2+ {[%clk 0:00:10.6]} 45. Ke3
{[%clk 0:00:01.9]} 45... Rxf7 {[%clk 0:00:11.2]} 46. Rxf7 {[%clk 0:00:02.7]}
46... Rxg4 {[%clk 0:00:11.9]} 47. Ra7 {[%clk 0:00:02.7]} 47... Ra4 {[%clk
0:00:11.6]} 48. Kf3 {[%clk 0:00:03.4]} 48... b4 {[%clk 0:00:11.7]} 49. Kg3
{[%clk 0:00:03.8]} 49... Ra3+ {[%clk 0:00:12.1]} 50. Kf2 {[%clk 0:00:03.6]}
50... b3 {[%clk 0:00:12.6]} 51. Rb7 {[%clk 0:00:04.3]} 51... Ra2+ {[%clk
0:00:12.3]} 52. Ke3 {[%clk 0:00:04.9]} 52... b2 {[%clk 0:00:12.7]} 53. Kd3
{[%clk 0:00:05.4]} 53... a5 {[%clk 0:00:12.7]} 54. Kc2 {[%clk 0:00:05.7]} 54...
a4 {[%clk 0:00:12.7]} 55. Kb1 {[%clk 0:00:06.2]} 55... Ra3 {[%clk 0:00:11.8]}
56. Rb5+ {[%clk 0:00:05.3]} 56... Kf4 {[%clk 0:00:11.5]} 57. Rb4+ {[%clk
0:00:05.6]} 57... Kf3 {[%clk 0:00:10.9]} 58. Rb5 {[%clk 0:00:04.2]} 58... Kf4
{[%clk 0:00:09.4]} 59. Rb4+ {[%clk 0:00:04.3]} 59... Kf5 {[%clk 0:00:09.7]} 60.
Rb5+ {[%clk 0:00:04.8]} 60... Ke4 {[%clk 0:00:08.8]} 61. Rb4+ {[%clk 0:00:03.9]}
61... Kd3 {[%clk 0:00:08.8]} 62. Rg4 {[%clk 0:00:04]} 62... Rb3 {[%clk
0:00:08.8]} 63. Rxg6 {[%clk 0:00:04.2]} 63... a3 {[%clk 0:00:09.3]} 64. Rg3+
{[%clk 0:00:04.5]} 64... Kc4 {[%clk 0:00:08.7]} 65. Rxb3 {[%clk 0:00:05.2]}
65... Kxb3 {[%clk 0:00:08.9]} 1/2-1/2

[Event "*** SCC Grand Prix: Titled Tuesday Blitz"]
[Site "Chess.com"]
[Date "2020.06.09"]
[Round "5"]
[White "Shota_Azaladze"]
[Black "GHANDEEVAM2003"]
[Result "0-1"]
[WhiteElo "2795"]
[BlackElo "2981"]
[TimeControl "180+1"]
[EndTime "9:58:03 PDT"]
[Termination "GHANDEEVAM2003 won by resignation"]

1. Nf3 {[%clk 0:03:00.9]} 1... d5 {[%clk 0:02:59.2]} 2. g3 {[%clk 0:03:00.9]}
2... Nf6 {[%clk 0:02:57.6]} 3. Bg2 {[%clk 0:03:01.1]} 3... Bf5 {[%clk 0:02:58]}
4. O-O {[%clk 0:03:00.9]} 4... c6 {[%clk 0:02:58]} 5. d3 {[%clk 0:03:01]} 5...
e6 {[%clk 0:02:55.7]} 6. Nc3 {[%clk 0:02:50.8]} 6... Be7 {[%clk 0:02:41.2]} 7.
Nd2 {[%clk 0:02:49.9]} 7... h6 {[%clk 0:02:29.6]} 8. e4 {[%clk 0:02:49.5]} 8...
Bh7 {[%clk 0:02:30.2]} 9. h3 {[%clk 0:02:43.6]} 9... Qc7 {[%clk 0:02:22.2]} 10.
f4 {[%clk 0:02:40.4]} 10... Na6 {[%clk 0:02:18.8]} 11. e5 {[%clk 0:02:24.9]}
11... Nd7 {[%clk 0:02:18.5]} 12. a3 {[%clk 0:02:25]} 12... g5 {[%clk 0:02:06.6]}
13. Nf3 {[%clk 0:02:23.3]} 13... O-O-O {[%clk 0:02:00.8]} 14. b4 {[%clk
0:02:19.9]} 14... Rdg8 {[%clk 0:01:58.3]} 15. Kh2 {[%clk 0:01:34.2]} 15... Rg7
{[%clk 0:01:34.2]} 16. Qe2 {[%clk 0:01:32.1]} 16... Rhg8 {[%clk 0:01:30.7]} 17.
fxg5 {[%clk 0:01:30.4]} 17... hxg5 {[%clk 0:01:27.6]} 18. g4 {[%clk 0:01:25.1]}
18... f6 {[%clk 0:01:23.3]} 19. d4 {[%clk 0:01:23.2]} 19... Nab8 {[%clk
0:01:13.1]} 20. Kg1 {[%clk 0:01:21.2]} 20... fxe5 {[%clk 0:01:10.3]} 21. dxe5
{[%clk 0:01:21]} 21... Nb6 {[%clk 0:01:02]} 22. Nd1 {[%clk 0:01:19.1]} 22... Nc4
{[%clk 0:00:59.2]} 23. Nf2 {[%clk 0:01:18.3]} 23... Nd7 {[%clk 0:00:58.3]} 24.
Nd3 {[%clk 0:01:18.4]} 24... Bxd3 {[%clk 0:00:57.3]} 25. cxd3 {[%clk 0:01:18.3]}
25... Ncxe5 {[%clk 0:00:57.7]} 26. Nd4 {[%clk 0:01:16]} 26... Rg6 {[%clk
0:00:55.4]} 27. Be3 {[%clk 0:01:14.8]} 27... Kb8 {[%clk 0:00:53.5]} 28. Rac1
{[%clk 0:01:14.3]} 28... Bd6 {[%clk 0:00:51.9]} 29. Nb5 {[%clk 0:01:13.2]} 29...
cxb5 {[%clk 0:00:51.7]} 30. Rxc7 {[%clk 0:01:12.6]} 30... Bxc7 {[%clk
0:00:52.6]} 31. Bd4 {[%clk 0:01:11.3]} 31... Nc6 {[%clk 0:00:51.4]} 32. Be3
{[%clk 0:01:05]} 32... Nde5 {[%clk 0:00:48.5]} 33. Rb1 {[%clk 0:00:38.4]} 33...
a6 {[%clk 0:00:47.2]} 34. a4 {[%clk 0:00:38.4]} 34... bxa4 {[%clk 0:00:34.3]}
35. b5 {[%clk 0:00:39.3]} 35... axb5 {[%clk 0:00:35.2]} 36. Rxb5 {[%clk
0:00:38.8]} 36... a3 {[%clk 0:00:35.7]} 37. Qc2 {[%clk 0:00:34.6]} 37... Bd6
{[%clk 0:00:30.1]} 38. Qb3 {[%clk 0:00:29.3]} 38... R6g7 {[%clk 0:00:27]} 39.
Bc5 {[%clk 0:00:28.7]} 39... Bxc5+ {[%clk 0:00:23]} 40. Rxc5 {[%clk 0:00:29.6]}
40... Rc7 {[%clk 0:00:19.6]} 41. Qxa3 {[%clk 0:00:28.6]} 41... Ng6 {[%clk
0:00:18.7]} 42. Qc1 {[%clk 0:00:22.3]} 42... Nf4 {[%clk 0:00:17.9]} 43. Bf1
{[%clk 0:00:22.9]} 43... Nd4 {[%clk 0:00:17]} 44. Kh2 {[%clk 0:00:15.1]} 44...
Nb3 {[%clk 0:00:17.1]} 45. Rxc7 {[%clk 0:00:14.4]} 45... Nxc1 {[%clk 0:00:17.7]}
46. Rxc1 {[%clk 0:00:15.3]} 46... Rc8 {[%clk 0:00:17.5]} 47. Rxc8+ {[%clk
0:00:13.6]} 47... Kxc8 {[%clk 0:00:18.4]} 48. d4 {[%clk 0:00:14.5]} 48... Kd7
{[%clk 0:00:17]} 49. Kg3 {[%clk 0:00:14.8]} 49... Ng6 {[%clk 0:00:17]} 50. Bd3
{[%clk 0:00:15]} 50... Nh4 {[%clk 0:00:17.3]} 51. Kf2 {[%clk 0:00:15.1]} 51...
Kd6 {[%clk 0:00:17.1]} 52. Ke3 {[%clk 0:00:15.4]} 52... b6 {[%clk 0:00:17]} 53.
Kf2 {[%clk 0:00:15.4]} 53... e5 {[%clk 0:00:17.5]} 54. dxe5+ {[%clk 0:00:15.5]}
54... Kxe5 {[%clk 0:00:18.4]} 55. Ke3 {[%clk 0:00:15.9]} 55... Ng2+ {[%clk
0:00:18.1]} 56. Kf2 {[%clk 0:00:16.1]} 56... Nf4 {[%clk 0:00:18.4]} 57. Bf1
{[%clk 0:00:16.8]} 57... d4 {[%clk 0:00:18.8]} 58. Kf3 {[%clk 0:00:17.7]} 58...
Ng6 {[%clk 0:00:18.4]} 59. Bd3 {[%clk 0:00:17.2]} 59... Nh4+ {[%clk 0:00:19.3]}
60. Kg3 {[%clk 0:00:17.3]} 60... Kd5 {[%clk 0:00:19.8]} 61. Kf2 {[%clk
0:00:17.5]} 61... Kc5 {[%clk 0:00:19.3]} 62. Ke2 {[%clk 0:00:16.8]} 62... Kb4
{[%clk 0:00:19.7]} 63. Be4 {[%clk 0:00:17.1]} 63... Kc3 {[%clk 0:00:19.7]} 64.
Bh7 {[%clk 0:00:13.6]} 64... b5 {[%clk 0:00:19.3]} 65. Be4 {[%clk 0:00:13.7]}
65... b4 {[%clk 0:00:20.2]} 66. Kd1 {[%clk 0:00:14.1]} 66... d3 {[%clk
0:00:19.8]} 67. Kc1 {[%clk 0:00:15]} 67... b3 {[%clk 0:00:19.9]} 68. Kb1 {[%clk
0:00:13.5]} 68... d2 {[%clk 0:00:19.4]} 0-1